bitfinex-derivatives/quotes_SOLF0:USTF0_20260217
["timestamp","ask_amount","ask_price","bid_price","bid_amount"]
[1771339453896,8.24080039,83.859,83.757,9.44512164]
[1771339454097,8.24080039,83.859,83.771,9.44512164]
[1771339454390,8.2482752,83.896,83.791,9.91155484]
[1771339454592,8.28220852,83.889,83.81,6.1073109]
[1771339454988,8.31174098,83.887,83.81,6.1073109]
[1771339455492,74.58,83.917,83.791,9.91155484]
[1771339455493,14.41905188,83.87,83.791,9.91155484]
[1771339455687,19.07731014,83.868,83.791,9.91155484]
[1771339455890,6.1073109,83.87,83.791,9.91155484]
[1771339455891,8.34031014,83.867,83.791,9.91155484]
[1771339456194,10.74,83.845,83.771,9.91155484]
[1771339456499,8.34031014,83.849,83.771,9.91155484]
[1771339457497,8.57770213,83.843,83.771,9.91155484]
[1771339457994,10.24477317,83.884,83.75,6.1073109]
[1771339457995,8.60631718,83.864,83.791,9.91155484]
[1771339459087,8.28274844,83.859,83.791,9.91155484]
[1771339459607,8.28207715,83.858,83.791,9.91155484]
[1771339460401,10.7396,83.849,83.791,9.91155484]
[1771339460598,8.28207715,83.858,83.8,6.1073109]
[1771339460799,8.34871974,83.879,83.801,9.91155484]
[1771339461498,8.34871974,83.879,83.715,167.3244]
[1771339461499,8.34808441,83.84,83.771,9.91155484]
[1771339461705,10.7404,83.842,83.79,6.1073109]
[1771339461894,8.37531916,83.869,83.791,9.91155484]
[1771339462100,9.7083882,83.849,83.77,6.1073109]
[1771339462300,10.7428,83.823,83.759,10.7509]
[1771339462601,9.7083882,83.849,83.77,6.1073109]
[1771339462904,10.7413,83.835,83.77,6.1073109]
[1771339463199,9.7083882,83.849,83.75,6.1073109]
[1771339463397,6.1073109,83.83,83.75,6.1073109]
[1771339463599,6.1073109,83.83,83.715,35.57]
[1771339463600,10.7447,83.808,83.743,10.7529]
[1771339463794,10.7447,83.808,83.705,84.14]
[1771339463795,9.7083882,83.829,83.74,6.1073109]
[1771339464000,9.7083882,83.809,83.72,6.1073109]
[1771339464197,9.7083882,83.809,83.654,167.4476]
[1771339464198,10.7487,83.778,83.716,9.91155484]
[1771339464400,10.7487,83.778,83.713,10.7568]
[1771339464401,9.7083882,83.789,83.713,10.7568]
[1771339464605,9.7083882,83.769,83.695,9.91155484]
[1771339465003,9.7083882,83.769,83.709,10.7573]
[1771339465206,6.1073109,83.75,83.695,9.91155484]
[1771339465400,6.1073109,83.75,83.604,167.5472]
[1771339465401,9.7083882,83.699,83.621,10.7687]
[1771339465606,167.2234,83.767,83.6,6.1073109]
[1771339465607,6.1073109,83.73,83.641,9.91155484]
[1771339466009,10.7531,83.743,83.657,9.91155484]
[1771339466404,9.7083882,83.744,83.657,9.91155484]
[1771339466598,9.7083882,83.744,83.661,9.91155484]
[1771339466808,9.7083882,83.769,83.661,9.91155484]
[1771339467006,9.7083882,83.749,83.681,10.7609]
[1771339467216,9.7083882,83.749,83.682,9.91155484]
[1771339467422,9.7083882,83.749,83.66,14.98883768]
[1771339467423,9.7083882,83.749,83.661,9.91155484]
[1771339467713,20.4637882,83.725,83.661,9.91155484]
[1771339467916,9.7083882,83.724,83.638,9.91155484]
[1771339468114,10.7571,83.712,83.641,10.7661]
[1771339468321,9.7083882,83.709,83.601,9.91155484]
[1771339468512,9.7083882,83.689,83.601,9.91155484]
[1771339468713,9.7083882,83.669,83.575,2.08021998]
[1771339468917,9.7083882,83.67,83.597,9.91155484]
[1771339469316,10.7633,83.664,83.597,9.91155484]
[1771339469517,9.7083882,83.67,83.597,9.91155484]
[1771339470321,10.7626,83.669,83.602,10.7711]
[1771339470711,9.7083882,83.67,83.602,10.7711]
[1771339471118,14.98883768,83.69,83.606,9.91155484]
[1771339471511,9.7083882,83.691,83.62,10.7688]
[1771339471715,9.7083882,83.691,83.606,9.91155484]
[1771339472119,9.7083882,83.69,83.618,10.7691]
[1771339472317,9.7083882,83.69,83.619,9.91155484]
[1771339473120,9.7083882,83.689,83.594,9.91155484]
[1771339473421,9.7083882,83.686,83.594,9.91155484]
[1771339473814,9.7083882,83.669,83.578,9.91155484]
[1771339474216,9.7083882,83.66,83.588,10.7729]
[1771339474519,9.7083882,83.66,83.578,9.91155484]
[1771339474720,9.7083882,83.66,83.594,10.7721]
[1771339474920,9.7083882,83.66,83.578,9.91155484]
[1771339475424,9.7083882,83.659,83.582,10.7737]
[1771339475723,167.357,83.7,83.558,9.91155484]
[1771339475724,9.7083882,83.649,83.558,9.91155484]
[1771339476223,9.7083882,83.64,83.567,10.7756]
[1771339476428,14.98883768,83.61,83.518,13.16397427]
[1771339476631,14.98883768,83.62,83.518,13.16397427]
[1771339476923,14.98883768,83.65,83.541,13.14562352]
[1771339477224,14.98883768,83.65,83.54,14.98883768]
[1771339477225,10.7671,83.634,83.557,13.14562352]
[1771339477427,167.4212,83.668,83.498,167.7594]
[1771339477428,14.98883768,83.62,83.521,13.14562352]
[1771339477727,14.98883768,83.64,83.524,13.14562352]
[1771339477922,14.98883768,83.64,83.52,14.98883768]
[1771339477923,14.98883768,83.64,83.565,13.14659258]
[1771339478328,14.98883768,83.66,83.565,13.14659258]
[1771339478518,14.98883768,83.66,83.528,167.6998]
[1771339478519,14.98883768,83.66,83.581,13.15219185]
[1771339478921,14.98883768,83.66,83.582,10.7737]
[1771339479619,10.764,83.659,83.58,13.15219185]
[1771339480426,14.98883768,83.66,83.582,13.15315481]
[1771339481033,250.01426868,83.707,83.588,12.97330505]
[1771339481034,14.98883768,83.68,83.588,12.97330505]
[1771339481428,250.01426868,83.707,83.602,10.7711]
[1771339481625,250.01426868,83.707,83.603,12.97385692]
[1771339481626,14.98883768,83.69,83.603,12.97385692]
[1771339481826,14.98883768,83.67,83.561,12.97385692]
[1771339482021,10.7632,83.664,83.576,12.97385692]
[1771339482221,14.98883768,83.67,83.576,12.97385692]
[1771339482736,10.7629,83.667,83.576,12.97385692]
[1771339483032,14.98883768,83.67,83.581,12.96618866]
[1771339483238,14.98883768,83.67,83.59,12.96618866]
[1771339483425,14.98883768,83.69,83.59,12.96618866]
[1771339483830,10.761,83.681,83.605,12.96671075]
[1771339484138,250.01426868,83.707,83.605,12.96671075]
[1771339484638,167.2115,83.773,83.576,167.6033]
[1771339484639,14.98883768,83.73,83.634,12.96671075]
[1771339484927,167.2115,83.773,83.634,12.96671075]
[1771339484928,10.7587,83.699,83.634,12.96671075]
[1771339485138,14.98883768,83.71,83.634,12.96671075]
[1771339485330,21.5027,83.757,83.634,12.96671075]
[1771339485331,14.98883768,83.73,83.634,12.96671075]
[1771339485725,14.98883768,83.74,83.634,12.96671075]
[1771339486023,21.4937,83.792,83.651,12.9009923]
[1771339486024,35.57,83.78,83.651,12.9009923]
[1771339486224,35.57,83.78,83.669,10.7625]
[1771339486225,6.11814399,83.74,83.669,10.7625]
[1771339486431,6.11814399,83.74,83.65,6.11814399]
[1771339486432,6.11814399,83.74,83.671,12.9009923]
[1771339486627,6.11814399,83.7,83.621,12.86923693]
[1771339487028,6.11814399,83.68,83.621,12.86923693]
[1771339487227,6.11814399,83.7,83.621,12.86923693]
[1771339487632,6.11814399,83.7,83.622,12.86953226]
[1771339487837,6.11814399,83.7,83.621,10.7686]
[1771339487838,6.11814399,83.68,83.601,12.86953226]
[1771339488738,6.11814399,83.66,83.601,12.86953226]
[1771339489339,6.11814399,83.67,83.601,12.86953226]
[1771339489934,6.11814399,83.67,83.615,12.68645925]
[1771339490131,167.2588,83.749,83.615,12.68645925]
[1771339490132,6.11814399,83.69,83.615,12.68645925]
[1771339490533,10.76,83.689,83.618,12.64929179]
[1771339490735,6.11814399,83.69,83.618,12.64929179]
[1771339491633,6.11814399,83.69,83.621,23.41786739]
[1771339491835,6.11814399,83.69,83.622,12.64916739]
[1771339492339,6.11814399,83.7,83.622,12.64916739]
[1771339492938,6.11814399,83.7,83.648,12.65552536]
[1771339493239,6.11814399,83.72,83.648,12.65552536]
[1771339493440,10.7564,83.717,83.65,10.765]
[1771339493939,6.11814399,83.72,83.657,12.65541687]
[1771339494344,6.11814399,83.74,83.661,12.65541687]
[1771339494544,668.4828,83.818,83.625,83.46]
[1771339494545,167.0802,83.839,83.671,12.65541687]
[1771339494738,167.0802,83.839,83.665,12.66414149]
[1771339494739,35.57,83.82,83.665,12.66414149]
[1771339494938,167.1003,83.829,83.625,167.5058]
[1771339494939,6.11814399,83.75,83.625,167.5058]
[1771339495135,6.11814399,83.75,83.671,12.66414149]
[1771339495333,6.11814399,83.73,83.671,12.66414149]
[1771339495544,6.11814399,83.73,83.65,6.11814399]
[1771339495545,6.11814399,83.76,83.69,6.11814399]
[1771339495744,6.11814399,83.78,83.691,12.66405097]
[1771339496045,6.11814399,83.8,83.711,12.66405097]
[1771339496243,6.11814399,83.8,83.742,10.7531]
[1771339496640,6.11814399,83.82,83.731,12.66405097]
[1771339497035,6.11814399,83.82,83.755,12.04787441]
[1771339497240,6.11814399,83.85,83.755,12.04787441]
[1771339497642,6.11814399,83.85,83.721,167.313]
[1771339497643,6.11814399,83.85,83.761,12.04675498]
[1771339497834,6.11814399,83.83,83.761,12.04675498]
[1771339498240,6.11814399,83.85,83.775,12.04675498]
[1771339498839,10.7395,83.849,83.776,10.7488]
[1771339499241,6.11814399,83.83,83.751,12.19154854]
[1771339499440,10.7409,83.838,83.752,10.7518]
[1771339499743,6.11814399,83.82,83.753,12.19154854]
[1771339500335,6.11814399,83.84,83.768,12.19069627]
[1771339500540,6.11814399,83.84,83.751,12.19069627]
[1771339500736,10.7374,83.866,83.781,12.19989095]
[1771339500943,10.7374,83.866,83.75,6.11814399]
[1771339500944,6.11814399,83.82,83.741,12.19989095]
[1771339501243,6.11814399,83.83,83.773,10.7492]
[1771339501439,166.972,83.893,83.74,6.11814399]
[1771339501440,6.11814399,83.81,83.741,12.19989095]
[1771339501752,6.11814399,83.83,83.741,12.19989095]
[1771339501947,6.11814399,83.85,83.77,12.19907258]
[1771339502645,6.11814399,83.83,83.776,12.5250296]
[1771339503042,6.11814399,83.83,83.711,12.5250296]
[1771339503236,6.11814399,83.85,83.741,12.5250296]
[1771339503442,6.11814399,83.81,83.741,12.5250296]
[1771339503641,74.68,83.846,83.741,12.5250296]
[1771339503851,6.11814399,83.8,83.741,12.5250296]
[1771339504242,74.68,83.846,83.741,12.5250296]
[1771339504442,6.11814399,83.8,83.741,12.5250296]
[1771339504848,6.11814399,83.78,83.72,12.5168407]
[1771339505046,6.11814399,83.79,83.72,12.5168407]
[1771339505940,6.11814399,83.77,83.72,12.5168407]
[1771339506144,6.11814399,83.78,83.72,12.5168407]
[1771339506652,6.11814399,83.78,83.7,6.11814399]
[1771339506653,6.11814399,83.76,83.7,12.5165415]
[1771339507049,74.7,83.795,83.7,12.5165415]
[1771339507352,6.11814399,83.75,83.671,12.5123856]
[1771339507544,6.11814399,83.77,83.671,12.5123856]
[1771339507747,6.11814399,83.77,83.691,12.51208762]
[1771339507944,10.7521,83.751,83.691,12.51208762]
[1771339508150,6.11814399,83.77,83.691,12.51208762]
[1771339508448,10.7499,83.768,83.703,12.51208762]
[1771339508659,6.11814399,83.77,83.681,12.44954807]
[1771339508951,6.11814399,83.8,83.681,12.44954807]
[1771339508952,6.11814399,83.75,83.681,12.44954807]
[1771339509154,10.7536,83.74,83.681,12.44954807]
[1771339509354,6.11814399,83.75,83.681,12.44954807]
[1771339509653,10.752,83.752,83.681,12.44954807]
[1771339510054,6.11814399,83.74,83.681,12.44954807]
[1771339510441,6.11814399,83.74,83.66,12.44916608]
[1771339510643,6.11814399,83.74,83.535,29.06782027]
[1771339510644,6.11814399,83.7,83.639,12.47179187]
[1771339510854,6.11814399,83.7,83.601,12.47179187]
[1771339510855,10.7629,83.667,83.601,12.47179187]
[1771339511040,6.11814399,83.66,83.601,12.47179187]
[1771339511548,6.11814399,83.66,83.57,6.11814399]
[1771339511549,6.11814399,83.65,83.58,12.47145015]
[1771339511756,6.11814399,83.63,83.551,12.47145015]
[1771339512250,6.11814399,83.64,83.551,12.47145015]
[1771339512651,6.11814399,83.64,83.567,12.42865948]
[1771339513244,6.11814399,83.64,83.573,12.42865948]
[1771339513443,10.767,83.635,83.573,12.42865948]
[1771339513654,6.11814399,83.64,83.573,12.42865948]
[1771339514846,6.11814399,83.62,83.541,12.30396378]
[1771339515448,10.7707,83.606,83.541,12.30396378]
[1771339515644,6.11814399,83.62,83.541,12.30396378]
[1771339515859,6.11814399,83.62,83.543,12.30342302]
[1771339516656,6.11814399,83.63,83.561,12.38805152]
[1771339516952,6.11814399,83.7,83.515,167.7269]
[1771339516953,6.11814399,83.7,83.581,12.38805152]
[1771339517250,6.11814399,83.64,83.581,12.38805152]
[1771339517457,6.11814399,83.66,83.581,12.38805152]
[1771339518345,10.7639,83.659,83.581,12.38805152]
[1771339518554,6.11814399,83.64,83.56,18.41853857]
[1771339518747,6.11814399,83.64,83.56,12.30039458]
[1771339518954,6.11814399,83.64,83.571,12.30039458]
[1771339519345,16.88454399,83.64,83.571,12.30039458]
[1771339519556,74.72,83.688,83.571,12.30039458]
[1771339519753,6.11814399,83.65,83.571,12.30039458]
[1771339520053,10.766,83.642,83.571,12.30039458]
[1771339520256,6.11814399,83.65,83.571,12.30039458]
[1771339520757,6.11814399,83.63,83.573,12.29987316]
[1771339521060,10.7678,83.628,83.573,12.29987316]
[1771339521358,6.11814399,83.65,83.573,12.29987316]
[1771339521556,10.7663,83.64,83.573,12.29987316]
[1771339521856,6.11814399,83.65,83.573,12.29987316]
[1771339522058,6.11814399,83.65,83.551,12.30034846]
[1771339522059,6.11814399,83.63,83.551,12.30034846]
[1771339523356,10.7681,83.626,83.553,12.29870411]
[1771339523553,6.11814399,83.64,83.553,12.29870411]
[1771339524045,6.11814399,83.65,83.553,12.29870411]
[1771339524046,6.11814399,83.62,83.553,12.29870411]
[1771339524552,6.11814399,83.62,83.531,12.34445758]
[1771339524759,6.11814399,83.6,83.531,12.34445758]
[1771339525060,6.11814399,83.65,83.542,12.34445758]
[1771339525061,6.11814399,83.62,83.542,12.34445758]
[1771339525353,6.11814399,83.62,83.551,12.34445758]
[1771339525659,6.11814399,83.65,83.51,6.11814399]
[1771339525660,6.11814399,83.59,83.51,6.11814399]
[1771339525951,6.11814399,83.57,83.511,12.34402443]
[1771339526156,6.11814399,83.6,83.458,452.31394931]
[1771339526157,6.11814399,83.6,83.513,12.34402443]
[1771339526354,21.5326,83.64,83.513,12.34402443]
[1771339526355,6.11814399,83.58,83.513,12.34402443]
[1771339526653,167.4717,83.643,83.531,12.30303942]
[1771339526654,6.11814399,83.61,83.531,12.30303942]
[1771339526855,6.11814399,83.61,83.532,12.30303942]
[1771339527456,6.11814399,83.59,83.532,12.30303942]
[1771339527656,6.11814399,83.59,83.511,12.30257411]
[1771339528652,10.7743,83.578,83.512,12.25346809]
[1771339529253,10.7755,83.569,83.512,12.25346809]
[1771339529557,6.11814399,83.59,83.512,12.25346809]
[1771339529761,10.7743,83.578,83.513,12.25295675]
[1771339530354,167.4391,83.659,83.525,12.25295675]
[1771339530355,10.7731,83.587,83.525,12.25295675]
[1771339530761,10.7744,83.578,83.525,12.25295675]
[1771339530955,35.92,83.632,83.505,12.27459024]
[1771339531154,167.4213,83.668,83.444,503.6051]
[1771339531155,6.11814399,83.65,83.561,12.27459024]
[1771339531362,6.11814399,83.63,83.561,12.27459024]
[1771339531562,6.11814399,83.61,83.486,12.27459024]
[1771339531758,6.11814399,83.65,83.541,12.27411657]
[1771339532065,74.74,83.649,83.541,12.27411657]
[1771339532257,6.11814399,83.62,83.541,12.27411657]
[1771339532453,6.11814399,83.6,83.541,12.27411657]
[1771339532857,0.32952696,83.615,83.541,12.27411657]
[1771339533054,85.5097,83.614,83.544,11.3326237]
[1771339533259,0.32952696,83.615,83.544,11.3326237]
[1771339533260,6.11814399,83.61,83.544,11.3326237]
[1771339533460,74.74,83.609,83.544,11.3326237]
[1771339533664,0.35619036,83.623,83.544,11.3326237]
[1771339533857,6.11814399,83.61,83.544,11.3326237]
[1771339534058,0.37974893,83.609,83.544,11.3326237]
[1771339534257,74.74,83.608,83.544,11.3326237]
[1771339534767,10.7712,83.602,83.544,11.3326237]
[1771339535060,167.4623,83.647,83.5,6.11814399]
[1771339535061,0.0625051,83.649,83.551,11.50146482]
[1771339535261,0.0625051,83.633,83.571,11.50146482]
[1771339535460,0.0625051,83.633,83.5,6.11814399]
[1771339535461,0.0625051,83.629,83.55,11.50146482]
[1771339535654,6.11814399,83.63,83.55,11.50146482]
[1771339535655,0.08796526,83.627,83.55,11.50146482]
[1771339535856,0.08796526,83.609,83.55,11.50146482]
[1771339536056,0.08796526,83.607,83.529,11.50023551]
[1771339536256,6.11814399,83.61,83.529,11.50023551]
[1771339536257,10.7718,83.598,83.529,11.50023551]
[1771339536458,0.08796526,83.605,83.529,11.50023551]
[1771339536961,10.7731,83.587,83.529,11.50023551]
[1771339537163,10.7731,83.587,83.501,11.57184797]
[1771339537370,6.11814399,83.6,83.501,11.57184797]
[1771339537371,10.7742,83.579,83.501,11.57184797]
[1771339537764,6.11814399,83.56,83.501,11.57184797]
[1771339537967,6.11814399,83.6,83.48,11.57071812]
[1771339537968,10.777,83.557,83.48,11.57071812]
[1771339538161,167.5832,83.587,83.48,11.57071812]
[1771339538374,6.11814399,83.53,83.48,11.57071812]
[1771339538673,74.76,83.529,83.48,11.57071812]
[1771339538872,74.76,83.529,83.4,6.11814399]
[1771339538873,6.11814399,83.49,83.421,11.7306727]
[1771339539077,6.11814399,83.49,83.319,168.1198]
[1771339539078,6.11814399,83.44,83.311,168.136]
[1771339539280,6.11814399,83.5,83.311,168.136]
[1771339539281,10.61181325,83.481,83.39,6.11814399]
[1771339539466,10.61181325,83.479,83.39,6.11814399]
[1771339539778,6.11814399,83.47,83.39,6.11814399]
[1771339539977,6.11814399,83.49,83.41,6.11814399]
[1771339540273,6.11814399,83.55,83.365,168.0275]
[1771339540274,10.61181325,83.505,83.43,6.11814399]
[1771339540779,6.11814399,83.49,83.41,10.7959]
[1771339540978,6.11814399,83.49,83.411,10.46259818]
[1771339541168,6.11814399,83.49,83.421,10.46259818]
[1771339541368,74.76,83.5,83.332,2.08569947]
[1771339541369,6.11814399,83.5,83.431,10.46259818]
[1771339541566,6.11814399,83.52,83.441,10.46259818]
[1771339541776,10.7825,83.515,83.441,10.46259818]
[1771339541976,10.41137723,83.549,83.441,10.46259818]
[1771339542274,167.5745,83.591,83.4,6.11814399]
[1771339542275,6.11814399,83.5,83.451,10.46259818]
[1771339542576,6.11814399,83.6,83.491,10.46259818]
[1771339542776,6.11814399,83.57,83.491,10.46259818]
[1771339543082,6.11814399,83.53,83.431,10.46259818]
[1771339543577,6.11814399,83.51,83.439,10.46259818]
[1771339544171,6.11814399,83.51,83.445,10.46259818]
[1771339544372,11.04655407,83.549,83.445,10.46259818]
[1771339544675,11.04655407,83.549,83.4,27.71254399]
[1771339544676,11.04655407,83.539,83.469,11.14421689]
[1771339544876,11.04655407,83.519,83.441,11.14421689]
[1771339545072,6.11814399,83.52,83.4,6.11814399]
[1771339545073,11.04655407,83.539,83.461,11.14421689]
[1771339545779,21.82585407,83.539,83.462,11.14421689]
[1771339545978,6.11814399,83.53,83.462,11.14421689]
[1771339546182,10.7807,83.529,83.462,11.14421689]
[1771339546376,6.11814399,83.53,83.462,11.14421689]
[1771339546878,74.78,83.546,83.462,11.14421689]
[1771339547379,10.7771,83.556,83.478,11.14421689]
[1771339547675,11.04655407,83.559,83.478,11.14421689]
[1771339547880,10.7799,83.535,83.478,11.14421689]
[1771339548077,11.04655407,83.534,83.456,11.14421689]
[1771339548379,11.04655407,83.534,83.377,168.0043]
[1771339548380,11.04655407,83.499,83.421,11.14421689]
[1771339548677,6.14780051,83.5,83.431,11.14421689]
[1771339549071,6.14780051,83.5,83.433,11.14421689]
[1771339549875,74.78,83.511,83.436,11.14421689]
[1771339550181,11.04655407,83.519,83.436,11.14421689]
[1771339550383,10.782,83.518,83.441,11.14421689]
[1771339550572,11.04655407,83.519,83.441,11.14421689]
[1771339551086,11.04655407,83.519,83.385,167.9865]
[1771339551087,6.14780051,83.5,83.426,11.14421689]
[1771339551588,74.78,83.503,83.427,10.7937]
[1771339551783,74.78,83.503,83.427,11.14421689]
[1771339552379,6.14780051,83.51,83.431,11.22751074]
[1771339552579,11.36757155,83.509,83.431,11.22751074]
[1771339552781,167.6002,83.579,83.431,11.22751074]
[1771339552782,11.36757155,83.549,83.431,11.22751074]
[1771339553085,6.14780051,83.52,83.431,11.22751074]
[1771339553286,6.14780051,83.52,83.451,11.22751074]
[1771339553487,10.7819,83.519,83.451,11.22751074]
[1771339553687,11.36757155,83.517,83.431,11.22751074]
[1771339554189,11.36757155,83.499,83.432,10.7931]
[1771339554689,11.36757155,83.499,83.433,11.22751074]
[1771339555083,11.36757155,83.499,83.411,11.22751074]
[1771339555277,11.36757155,83.479,83.411,11.22751074]
[1771339555481,11.36757155,83.477,83.411,11.22751074]
[1771339555880,11.36757155,83.475,83.4,6.14780051]
[1771339556191,11.36757155,83.475,83.388,11.22751074]
[1771339556192,11.36757155,83.459,83.388,11.22751074]
[1771339556692,11.36757155,83.439,83.367,11.22751074]
[1771339556990,74.8,83.438,83.367,11.22751074]
[1771339557185,10.7927,83.436,83.369,10.8012]
[1771339557381,22.16027155,83.436,83.369,10.8012]
[1771339557684,22.16027155,83.436,83.231,29.06782027]
[1771339557685,7.3882266,83.438,83.322,11.22751074]
[1771339557886,7.3882266,83.438,83.284,168.1921]
[1771339557887,6.14780051,83.42,83.331,11.22751074]
[1771339558083,74.8,83.419,83.351,11.22751074]
[1771339558283,7.3882266,83.417,83.351,11.22751074]
[1771339558483,7.3882266,83.417,83.274,35.92]
[1771339558484,7.3882266,83.417,83.301,11.22751074]
[1771339558689,6.5588165,83.415,83.341,11.22751074]
[1771339558890,6.14780051,83.41,83.341,11.22751074]
[1771339559084,6.59373201,83.409,83.341,11.22751074]
[1771339559390,6.59373201,83.408,83.319,11.22751074]
[1771339559591,6.59373201,83.406,83.319,11.22751074]
[1771339559983,6.59373201,83.406,83.33,6.14780051]
[1771339560185,6.59373201,83.406,83.331,11.22751074]
[1771339560392,74.8,83.417,83.341,11.22751074]
[1771339560592,6.32682193,83.425,83.344,11.22751074]
[1771339560790,6.36100368,83.423,83.344,11.22751074]
[1771339560988,74.8,83.424,83.321,11.22751074]
[1771339560989,6.14780051,83.39,83.321,11.22751074]
[1771339561187,12.50880419,83.39,83.321,11.22751074]
[1771339561387,6.36100368,83.39,83.33,6.14780051]
[1771339561687,12.50880419,83.41,83.331,11.22751074]
[1771339561879,6.14780051,83.43,83.35,17.37531125]
[1771339562085,10.7939,83.426,83.351,11.22751074]
[1771339562386,6.39312583,83.425,83.351,11.22751074]
[1771339562591,10.7946,83.421,83.351,11.22751074]
[1771339562788,74.8,83.424,83.351,11.22751074]
[1771339562993,6.39312583,83.425,83.351,11.22751074]
[1771339563291,6.5002879,83.42,83.34,6.14780051]
[1771339563497,6.5002879,83.409,83.34,6.14780051]
[1771339564093,6.5002879,83.409,83.331,11.22751074]
[1771339564697,6.44699182,83.408,83.331,11.22751074]
[1771339564896,6.44699182,83.399,83.309,11.22751074]
[1771339565087,6.44699182,83.397,83.321,11.22751074]
[1771339565392,12.59479233,83.42,83.341,11.22751074]
[1771339565592,12.59479233,83.42,83.3,6.14780051]
[1771339565593,6.14780051,83.44,83.361,11.22751074]
[1771339565796,6.14780051,83.43,83.361,11.22751074]
[1771339566094,6.47762228,83.439,83.3,174.30620051]
[1771339566095,74.82,83.438,83.371,11.22751074]
[1771339566391,6.47762228,83.429,83.321,11.22751074]
[1771339566593,6.47762228,83.399,83.321,11.22751074]
[1771339566993,6.47762228,83.399,83.322,10.8073]
[1771339567192,6.47762228,83.399,83.323,11.22751074]
[1771339567493,10.7994,83.384,83.323,11.22751074]
[1771339567683,6.14780051,83.38,83.301,11.22751074]
[1771339567888,6.61362347,83.378,83.301,11.22751074]
[1771339568085,10.8019,83.365,83.301,11.22751074]
[1771339568386,74.82,83.374,83.301,11.22751074]
[1771339568585,10.8029,83.357,83.286,10.812]
[1771339568791,10.8029,83.357,83.21,168.3401]
[1771339568792,6.14780051,83.31,83.246,11.22751074]
[1771339569095,6.14780051,83.34,83.271,11.22751074]
[1771339569992,10.8067,83.328,83.271,11.22751074]
[1771339570196,6.14780051,83.34,83.271,11.22751074]
[1771339570496,6.17082721,83.349,83.281,11.22751074]
[1771339570698,6.21528326,83.371,83.281,11.22751074]
[1771339570885,21.5928,83.407,83.233,2.0889045]
[1771339570886,10.8016,83.367,83.303,11.22751074]
[1771339571091,6.14780051,83.39,83.303,11.22751074]
[1771339571293,6.21528326,83.389,83.303,11.22751074]
[1771339571496,6.14780051,83.4,83.3,6.14780051]
[1771339571497,6.14780051,83.4,83.321,11.22751074]
[1771339571696,6.21528326,83.411,83.341,11.22751074]
[1771339571897,10.7968,83.404,83.341,11.22751074]
[1771339572194,6.14780051,83.42,83.341,11.22751074]
[1771339572592,6.24341067,83.419,83.341,11.22751074]
[1771339572793,6.14780051,83.4,83.341,11.22751074]
[1771339572986,6.14780051,83.4,83.32,6.14780051]
[1771339572987,6.14780051,83.4,83.321,11.22751074]
[1771339573198,10.8005,83.376,83.321,10.74287167]
[1771339573786,10.7992,83.386,83.321,10.74287167]
[1771339574392,10.7992,83.386,83.32,6.14780051]
[1771339574393,10.798,83.395,83.333,10.8059]
[1771339574593,6.86035893,83.42,83.34,6.14780051]
[1771339574594,13.00815944,83.42,83.34,6.14780051]
[1771339574903,13.00815944,83.42,83.293,168.1731]
[1771339574904,10.7878,83.474,83.4,6.14780051]
[1771339575200,10.7878,83.474,83.397,10.7976]
[1771339575201,6.940998,83.479,83.401,12.07668869]
[1771339575390,6.14780051,83.46,83.401,12.07668869]
[1771339575591,6.14780051,83.46,83.331,168.0972]
[1771339575592,6.95391551,83.412,83.335,12.07668869]
[1771339575800,6.95391551,83.412,83.245,504.8111]
[1771339575801,6.95391551,83.462,83.371,12.07668869]
[1771339576100,6.95391551,83.462,83.37,6.14780051]
[1771339576101,10.7897,83.459,83.391,12.07668869]
[1771339576292,6.14780051,83.47,83.391,12.07668869]
[1771339576495,6.14780051,83.47,83.411,12.07668869]
[1771339576701,6.14780051,83.45,83.38,12.07668869]
[1771339577198,6.14780051,83.45,83.35,6.14780051]
[1771339577199,6.14780051,83.43,83.352,12.07668869]
[1771339577501,7.42975394,83.449,83.352,12.07668869]
[1771339578489,10.7922,83.439,83.364,10.8019]
[1771339578691,7.42975394,83.449,83.365,12.07668869]
[1771339578999,7.42975394,83.449,83.38,6.14780051]
[1771339579398,7.42975394,83.449,83.263,11.87]
[1771339579399,6.85010995,83.509,83.42,6.14780051]
[1771339579597,6.14780051,83.55,83.393,12.07668869]
[1771339579598,6.14780051,83.47,83.393,12.07668869]
[1771339579805,6.86239601,83.469,83.393,12.07668869]
[1771339580002,6.86239601,83.493,83.421,12.07668869]
[1771339580393,253.73971442,83.537,83.442,10.7917]
[1771339580394,6.86239601,83.52,83.442,10.7917]
[1771339580593,6.86239601,83.52,83.44,6.14780051]
[1771339580594,6.86239601,83.52,83.443,12.07668869]
[1771339580803,6.86239601,83.52,83.46,6.14780051]
[1771339581001,253.73971442,83.537,83.46,6.14780051]
[1771339581002,253.73971442,83.537,83.462,12.07668869]
[1771339581194,253.73971442,83.537,83.41,167.9364]